bitfinex-derivatives/quotes_BTCF0:USTF0_20240815
["timestamp","ask_amount","ask_price","bid_price","bid_amount"]
[1723680478999,0.847538,58859.0,58853.0,0.00025489]
[1723680479000,0.084936,58854.0,58853.0,0.00025489]
[1723680479294,0.174936,58854.0,58853.0,0.00025489]
[1723680480089,0.174936,58854.0,58853.0,0.00125489]
[1723680480289,0.176936,58854.0,58853.0,0.00125489]
[1723680480495,0.092,58854.0,58853.0,0.25619189]
[1723680481192,0.093,58854.0,58853.0,0.25719189]
[1723680481994,0.003,58854.0,58853.0,0.25719189]
[1723680482896,0.001,58854.0,58853.0,0.34212889]
[1723680483093,0.001,58854.0,58853.0,0.34112889]
[1723680483291,0.005,58854.0,58853.0,0.34212889]
[1723680485797,0.00025489,58864.0,58863.0,0.084923]
[1723680485996,0.08025489,58864.0,58863.0,0.084923]
[1723680487097,0.08025489,58864.0,58863.0,0.085923]
[1723680488111,0.08125489,58864.0,58863.0,0.086923]
[1723680490417,0.08125489,58864.0,58863.0,0.002]
[1723680490418,0.16617689,58864.0,58863.0,0.002]
[1723680492630,1.28161689,58864.0,58863.0,0.002]
[1723680494725,1.28161689,58864.0,58863.0,0.03883267]
[1723680495329,1.34876253,58864.0,58863.0,0.03883267]
[1723680495626,0.16617689,58864.0,58863.0,0.03883267]
[1723680496218,0.21667479,58864.0,58863.0,0.03883267]
[1723680496424,0.16617689,58864.0,58863.0,0.03883267]
[1723680497434,0.59412253,58864.0,58863.0,0.03883267]
[1723680497827,0.52697689,58864.0,58863.0,0.03883267]
[1723680498431,0.52697689,58864.0,58863.0,0.20883267]
[1723680498936,0.14871124,58864.0,58863.0,0.29375567]
[1723680499124,0.08125489,58864.0,58863.0,0.29375567]
[1723680499325,0.14871124,58864.0,58863.0,0.29375567]
[1723680499640,0.14875447,58864.0,58863.0,0.29375567]
[1723680500428,0.08125489,58864.0,58863.0,0.29375567]
[1723680501230,0.14875022,58864.0,58863.0,0.29375567]
[1723680501429,0.08125489,58864.0,58863.0,0.34457088]
[1723680501630,0.14875022,58864.0,58863.0,0.29375567]
[1723680502131,0.08125489,58864.0,58863.0,0.34457088]
[1723680502438,0.14875022,58864.0,58863.0,0.29375567]
[1723680502735,0.14875022,58864.0,58863.0,0.34463396]
[1723680502736,0.08125489,58864.0,58863.0,0.34463396]
[1723680502934,0.08125489,58864.0,58863.0,0.72230928]
[1723680503132,0.08125489,58864.0,58863.0,0.65455567]
[1723680503732,0.08125489,58864.0,58863.0,0.48455567]
[1723680504039,0.13185286,58864.0,58863.0,0.48455567]
[1723680504427,0.08125489,58864.0,58863.0,0.12375567]
[1723680505135,0.16617689,58864.0,58863.0,0.03883267]
[1723680505325,0.60447689,58864.0,58863.0,0.03883267]
[1723680506937,0.68939889,58864.0,58863.0,0.03883267]
[1723680507135,0.084936,58854.0,58852.0,0.05088014]
[1723680507336,0.6832147,58854.0,58851.0,0.05088014]
[1723680507640,0.615736,58854.0,58849.0,0.05088014]
[1723680507831,0.615736,58854.0,58848.0,0.05088014]
[1723680508138,0.615736,58854.0,58847.0,0.05088014]
[1723680508327,0.617736,58854.0,58853.0,0.00125489]
[1723680509331,1.613432,58854.0,58853.0,0.001]
[1723680509531,1.613432,58854.0,58844.0,0.05088014]
[1723680509532,2.09450907,58854.0,58844.0,0.05088014]
[1723680509735,0.13555358,58845.0,58844.0,0.05088014]
[1723680509936,0.08495,58844.0,58841.0,0.05088014]
[1723680510134,0.16495,58844.0,58841.0,0.05088014]
[1723680510343,0.16495,58844.0,58840.0,0.49663614]
[1723680510528,0.084952,58843.0,58840.0,0.49663614]
[1723680510735,0.164952,58843.0,58840.0,0.445756]
[1723680511038,0.445753,58842.0,58840.0,0.084956]
[1723680511241,0.445753,58842.0,58837.0,0.05113503]
[1723680511242,0.690708,58842.0,58837.0,0.00025489]
[1723680511437,0.605753,58842.0,58840.0,0.007]
[1723680511645,0.084955,58841.0,58840.0,0.014]
[1723680511941,0.244955,58841.0,58840.0,0.014]
[1723680512141,0.084959,58838.0,58837.0,0.00025489]
[1723680512337,0.174959,58838.0,58837.0,0.00025489]
[1723680513641,1.36068,58838.0,58825.0,0.05088014]
[1723680513941,0.3608,58830.0,58825.0,0.084977]
[1723680514140,0.3608,58830.0,58823.0,0.0774]
[1723680514141,0.4508,58830.0,58823.0,0.0774]
[1723680514339,0.084968,58832.0,58828.0,0.084973]
[1723680514544,0.164968,58832.0,58828.0,0.084973]
[1723680514736,0.08497,58831.0,58828.0,0.084973]
[1723680515537,0.08497,58831.0,58828.0,0.085973]
[1723680515735,0.44577,58831.0,58828.0,0.001]
[1723680515935,0.084971,58830.0,58828.0,0.001]
[1723680517043,0.084972,58829.0,58828.0,0.001]
[1723680517240,0.164972,58829.0,58828.0,0.001]
[1723680518437,0.084975,58827.0,58824.0,0.00025489]
[1723680518639,0.164975,58827.0,58824.0,0.00025489]
[1723680518838,0.084978,58825.0,58824.0,0.00025489]
[1723680519040,0.164978,58825.0,58824.0,0.00025489]
[1723680519541,0.525778,58825.0,58824.0,0.00025489]
[1723680519939,0.084985,58820.0,58816.0,0.0772]
[1723680520247,0.244985,58820.0,58816.0,0.2372]
[1723680520547,0.244985,58820.0,58816.0,0.0772]
[1723680520749,0.084987,58819.0,58816.0,0.0772]
[1723680520940,0.174987,58819.0,58816.0,0.0772]
[1723680521139,0.174987,58819.0,58816.0,0.16219]
[1723680521335,0.08523589,58823.0,58819.0,0.084986]
[1723680521543,0.16523589,58823.0,58819.0,0.084986]
[1723680521745,0.005,58820.0,58819.0,0.084986]
[1723680522050,0.003,58819.0,58816.0,0.163189]
[1723680522246,0.143,58819.0,58816.0,0.163189]
[1723680522443,0.14,58819.0,58816.0,0.162189]
[1723680522646,0.224987,58819.0,58816.0,0.0772]
[1723680522839,0.224987,58819.0,58814.0,0.3608]
[1723680523039,0.224987,58819.0,58814.0,0.5308]
[1723680524244,0.226987,58819.0,58817.0,0.084989]
[1723680524443,0.142,58819.0,58817.0,0.244989]
[1723680524845,0.145,58819.0,58817.0,0.244989]
[1723680525248,0.142,58819.0,58817.0,0.244989]
[1723680525449,0.145,58819.0,58817.0,0.245989]
[1723680525951,0.145,58819.0,58818.0,0.084988]
[1723680526252,0.145,58819.0,58818.0,0.244988]
[1723680526639,0.149,58819.0,58818.0,0.244988]
[1723680527243,0.143,58819.0,58818.0,0.244988]
[1723680527448,0.149,58819.0,58818.0,0.245988]
[1723680527855,0.149,58819.0,58818.0,0.246988]
[1723680530447,0.149,58819.0,58818.0,0.162]
[1723680530651,0.149,58819.0,58807.0,0.3608]
[1723680530652,0.084995,58813.0,58807.0,0.3608]
[1723680530853,0.801595,58813.0,58804.0,0.085008]
[1723680531048,0.51025844,58812.0,58803.0,0.0086339]
[1723680531253,0.2058,58807.0,58803.0,0.0086339]
[1723680531444,0.3558,58807.0,58803.0,0.0086339]
[1723680531649,0.085012,58802.0,58796.0,0.445819]
[1723680531850,0.2058,58800.0,58789.0,0.0754]
[1723680532072,0.085021,58795.0,58791.0,0.085026]
[1723680532246,0.225021,58795.0,58791.0,0.085026]
[1723680532849,0.2058,58794.0,58791.0,0.085026]
[1723680533049,0.380823,58794.0,58790.0,0.3608]
[1723680533462,0.380823,58794.0,58791.0,0.004]
[1723680533766,0.085017,58798.0,58791.0,0.004]
[1723680533959,0.165017,58798.0,58791.0,0.004]
[1723680534154,0.165017,58798.0,58791.0,0.008]
[1723680534462,0.08502,58796.0,58793.0,0.085024]
[1723680534654,0.16502,58796.0,58793.0,0.085024]
[1723680535159,0.08,58796.0,58793.0,0.085024]
[1723680536755,0.001,58794.0,58793.0,0.255024]
[1723680537461,0.00016361,58799.0,58793.0,0.173]
[1723680537666,0.09016361,58799.0,58798.0,0.085017]
[1723680538950,0.09416361,58799.0,58798.0,0.085017]
[1723680539962,0.09416361,58799.0,58796.0,0.085018]
[1723680540264,0.09416361,58799.0,58793.0,0.003]
[1723680540454,0.085019,58797.0,58794.0,0.085022]
[1723680540652,0.2058,58795.0,58791.0,0.3608]
[1723680540850,0.3758,58795.0,58791.0,0.3608]
[1723680541060,0.085025,58792.0,58786.0,0.3608]
[1723680541269,0.085032,58788.0,58786.0,0.3608]
[1723680541456,0.225032,58788.0,58786.0,0.3608]
[1723680541658,0.225032,58788.0,58786.0,0.5008]
[1723680541858,0.14,58788.0,58783.0,0.446718]
[1723680542061,0.14,58788.0,58776.0,0.41168014]
[1723680542062,0.3608,58785.0,58776.0,0.3608]
[1723680542361,0.085041,58782.0,58777.0,0.085047]
[1723680542564,0.245041,58782.0,58777.0,0.245047]
[1723680543272,0.245041,58782.0,58778.0,0.085045]
[1723680543762,0.246041,58782.0,58778.0,0.085045]
[1723680543967,0.246041,58782.0,58779.0,0.085044]
[1723680544567,0.161,58782.0,58781.0,0.085041]
[1723680544867,0.001,58782.0,58781.0,0.085041]
[1723680545077,0.001,58782.0,58781.0,0.245041]
[1723680545362,0.002,58782.0,58781.0,0.245041]
[1723680545562,0.092,58782.0,58781.0,0.245041]
[1723680545766,0.092,58782.0,58781.0,0.095041]
[1723680545952,0.091,58782.0,58781.0,0.095041]
[1723680546159,0.092,58782.0,58781.0,0.095041]
[1723680546767,0.091,58782.0,58781.0,0.095041]
[1723680546967,0.002,58782.0,58781.0,0.616841]
[1723680550061,0.002,58782.0,58781.0,0.256041]
[1723680550271,0.102,58782.0,58781.0,0.256041]
[1723680551067,0.18704,58782.0,58781.0,0.021]
[1723680551280,0.27208,58782.0,58781.0,0.021]
[1723680552473,0.27108,58782.0,58781.0,0.012]
[1723680552864,0.27008,58782.0,58781.0,0.002]
[1723680553060,0.27008,58782.0,58781.0,0.001]
[1723680553365,0.08505,58776.0,58771.0,0.085055]
[1723680553573,0.3608,58772.0,58771.0,0.225055]
[1723680553770,0.3608,58772.0,58771.0,0.085055]
[1723680553771,0.4608,58772.0,58771.0,0.085055]
[1723680555270,0.3608,58777.0,58771.0,0.5208]
[1723680555572,0.002,58776.0,58771.0,0.5418]
[1723680555772,0.162,58776.0,58771.0,0.5418]
[1723680556072,0.162,58776.0,58775.0,0.085049]
[1723680556275,0.161,58776.0,58775.0,0.255049]
[1723680556667,0.16,58776.0,58775.0,0.255049]
[1723680556870,0.001,58776.0,58775.0,0.25505]
[1723680558368,0.001,58776.0,58775.0,0.26005]
[1723680558763,0.00887174,58783.0,58782.0,0.08504]
[1723680558975,0.14,58783.0,58782.0,0.08504]
[1723680559966,0.147,58783.0,58782.0,0.22504]
[1723680560166,0.007,58783.0,58782.0,0.22504]
[1723680560367,0.00025511,58786.0,58783.0,0.51036]
[1723680560566,0.01,58786.0,58785.0,0.085036]
[1723680560764,0.01,58786.0,58785.0,0.225036]
[1723680561071,0.01,58792.0,58791.0,0.085027]
[1723680561271,0.07060301,58798.0,58797.0,0.085018]
[1723680561578,0.05060301,58803.0,58795.0,0.3608]
[1723680561771,0.05060301,58803.0,58798.0,0.085016]
[1723680561772,0.085014,58801.0,58798.0,0.085016]
[1723680561978,0.085015,58800.0,58799.0,0.085015]
[1723680562273,0.05085812,58803.0,58800.0,0.085013]
[1723680562475,0.09025511,58803.0,58796.0,0.1413]
[1723680562867,0.22586812,58803.0,58796.0,0.1413]
[1723680563063,0.085012,58802.0,58800.0,0.085013]
[1723680563265,0.175012,58802.0,58800.0,0.085013]
[1723680563477,0.175012,58802.0,58800.0,0.086013]
[1723680563866,0.085012,58801.0,58800.0,0.001]
[1723680564073,0.255012,58801.0,58800.0,0.001]
[1723680564886,0.00625511,58803.0,58800.0,0.001]
[1723680565072,0.15125511,58803.0,58794.0,0.3608]
[1723680565272,0.15125511,58803.0,58799.0,0.085015]
[1723680565474,0.009,58801.0,58800.0,0.001]
[1723680565670,0.089,58801.0,58800.0,0.001]
[1723680565976,0.098,58801.0,58800.0,0.002]
[1723680566169,0.089,58801.0,58800.0,0.001]
[1723680566376,0.08,58801.0,58799.0,0.086015]
[1723680566983,0.08,58801.0,58799.0,0.085015]
[1723680567184,0.089,58801.0,58800.0,0.001]
[1723680567970,0.096,58801.0,58800.0,0.002]
[1723680568176,0.096,58801.0,58800.0,0.087014]
[1723680568683,0.087,58801.0,58800.0,0.086014]
[1723680568988,0.094,58801.0,58800.0,0.086014]
[1723680569479,0.096,58801.0,58800.0,0.087014]
[1723680570282,0.181012,58801.0,58800.0,0.002]
[1723680570485,1.212,58801.0,58792.0,0.00025511]
[1723680570691,0.085024,58793.0,58792.0,0.00025511]
[1723680570987,0.235024,58793.0,58792.0,0.00025511]
[1723680571184,0.379124,58793.0,58792.0,0.00025511]
[1723680572279,0.379124,58793.0,58792.0,0.00325511]
[1723680573191,0.389124,58793.0,58792.0,0.00325511]
[1723680573384,0.39800223,58793.0,58792.0,0.00325511]
[1723680575289,0.41100223,58793.0,58792.0,0.00225511]
[1723680579788,0.77180223,58793.0,58792.0,0.00225511]
[1723680580380,0.77180223,58793.0,58792.0,1e-08]
[1723680583886,0.54267823,58793.0,58792.0,0.08502501]
[1723680584184,0.18187823,58793.0,58792.0,0.24502501]
[1723680584691,0.18187823,58793.0,58792.0,0.60582501]
[1723680586392,0.18187823,58793.0,58792.0,0.24502501]
[1723680588094,0.18187823,58793.0,58792.0,0.60582501]
[1723680588396,0.023,58793.0,58792.0,0.76245001]
[1723680589291,0.023,58793.0,58792.0,0.83029007]
[1723680592294,0.023,58793.0,58792.0,0.74526507]
[1723680592799,0.103,58793.0,58792.0,0.67742501]
[1723680593899,0.023,58793.0,58792.0,0.67742501]
[1723680594495,0.023,58793.0,58792.0,0.74526507]
[1723680595090,0.103,58793.0,58792.0,0.74526507]
[1723680595398,0.103,58793.0,58792.0,0.67742501]
[1723680595607,0.023,58793.0,58792.0,0.76245001]
[1723680595899,0.023,58793.0,58792.0,0.84717933]
[1723680596102,0.023,58793.0,58792.0,1.82732599]
[1723680596396,0.023,58793.0,58792.0,1.92751404]
[1723680596799,0.023,58793.0,58792.0,1.83545748]
[1723680597191,0.01,58793.0,58792.0,1.83745748]
[1723680598397,0.08526511,58803.0,58802.0,0.085011]
[1723680598593,0.09025511,58803.0,58802.0,0.245011]
[1723680599603,0.09925511,58803.0,58802.0,0.246011]
[1723680599803,0.10925511,58803.0,58802.0,0.247011]
[1723680600308,0.01925511,58803.0,58802.0,0.692822]
[1723680600485,0.01925511,58803.0,58802.0,1.203022]
[1723680600692,0.01925511,58803.0,58802.0,1.603022]
[1723680601099,0.01925511,58803.0,58802.0,1.96093516]
[1723680601296,0.01925511,58803.0,58802.0,1.66979519]
[1723680602098,0.01925511,58803.0,58802.0,1.81788506]
[1723680602594,0.01025511,58803.0,58802.0,1.81688506]
[1723680602791,0.01125511,58803.0,58802.0,1.68933124]
[1723680602992,0.01125511,58803.0,58802.0,2.08933123]
[1723680603297,1.1e-07,58803.0,58802.0,2.19030076]
[1723680603695,1.1e-07,58803.0,58802.0,2.10528976]
[1723680603897,1.1e-07,58803.0,58802.0,2.19030076]
[1723680605405,1.1e-07,58803.0,58802.0,2.0422109]
[1723680605701,0.3608,58828.0,58816.0,0.084991]
[1723680605910,0.3608,58828.0,58825.0,0.084976]
[1723680606100,0.084976,58826.0,58825.0,0.084976]
[1723680606297,0.478672,58829.0,58828.0,0.084973]
[1723680606502,0.167072,58829.0,58828.0,0.084973]
[1723680607509,0.01,58829.0,58828.0,0.234973]
[1723680607697,0.00025511,58834.0,58828.0,0.15]
[1723680607894,0.00025511,58834.0,58833.0,0.084966]
[1723680607895,0.09400626,58834.0,58833.0,0.084966]
[1723680608201,0.16522011,58834.0,58833.0,0.084966]
[1723680609106,0.16522011,58834.0,58833.0,0.085966]
[1723680609107,0.16822011,58834.0,58833.0,0.085966]
[1723680610600,0.17822011,58834.0,58833.0,0.246966]
[1723680611406,0.1868627,58834.0,58833.0,0.246966]
[1723680612505,0.1018977,58834.0,58833.0,0.246966]
[1723680612697,0.1018977,58834.0,58833.0,0.086966]
[1723680613407,0.1018977,58834.0,58824.0,0.3608]
[1723680613408,0.084978,58825.0,58824.0,0.3608]
[1723680613600,0.5108,58825.0,58824.0,0.084979]
[1723680613800,0.5108,58825.0,58823.0,0.00025511]
[1723680614002,0.1534,58824.0,58823.0,0.00025511]
[1723680614302,0.1534,58824.0,58812.0,0.3608]
[1723680614303,0.084983,58822.0,58812.0,0.3608]
[1723680614509,0.3608,58820.0,58818.0,0.084987]
[1723680614706,0.4608,58820.0,58818.0,0.224987]
[1723680615006,0.4608,58820.0,58818.0,0.084987]
[1723680615598,0.4608,58820.0,58818.0,0.254987]
[1723680616004,0.4608,58820.0,58819.0,0.084986]
[1723680616205,0.1,58820.0,58819.0,0.084986]
[1723680617203,0.105,58820.0,58819.0,0.085986]
[1723680617404,0.113,58820.0,58819.0,0.086986]
[1723680618712,0.113,58820.0,58819.0,0.256986]
[1723680621812,0.013,58820.0,58819.0,0.256986]
[1723680622513,0.183,58820.0,58819.0,0.256986]
[1723680626115,0.183,58820.0,58819.0,0.30773093]
[1723680626315,0.628785,58820.0,58819.0,0.172]
[1723680626707,0.183,58820.0,58819.0,0.256986]
[1723680628113,0.183,58820.0,58819.0,0.617786]
[1723680629628,0.096181,58820.0,58819.0,0.787758]
[1723680629812,0.05060301,58830.0,58819.0,0.787758]
[1723680629813,0.00025511,58834.0,58833.0,0.084966]
[1723680630015,0.00025511,58834.0,58833.0,0.615766]
[1723680630418,0.00025511,58834.0,58833.0,0.68353734]
[1723680630817,0.00025511,58834.0,58833.0,1.125686]
[1723680631511,0.00025511,58834.0,58833.0,1.695618]
[1723680631806,0.00025511,58834.0,58833.0,1.67366258]
[1723680632013,0.00625511,58834.0,58833.0,1.77635877]
[1723680632212,0.01625511,58834.0,58833.0,1.67566258]
[1723680632521,0.01625511,58834.0,58833.0,1.19069658]
[1723680632730,0.00625511,58834.0,58833.0,0.621766]
[1723680632916,0.00025511,58834.0,58833.0,0.625766]
[1723680633313,0.00025511,58834.0,58833.0,0.620766]
[1723680633515,0.00025511,58834.0,58833.0,0.625766]
[1723680633717,0.00025511,58834.0,58833.0,0.626766]
[1723680633924,0.00025511,58834.0,58833.0,0.616766]
[1723680634119,0.00025511,58834.0,58833.0,0.68448878]
[1723680634822,0.00025511,58834.0,58833.0,1.67937478]
[1723680635327,0.00325511,58834.0,58833.0,1.600652]
[1723680636024,0.00125511,58834.0,58833.0,1.604652]
[1723680636219,0.00025511,58834.0,58833.0,1.67159555]
[1723680636617,0.00025511,58834.0,58833.0,1.67259555]
[1723680636817,0.00025511,58834.0,58833.0,1.66859555]
[1723680637020,0.00025511,58834.0,58833.0,1.67359555]
[1723680637221,0.00025511,58834.0,58833.0,1.610652]
[1723680638322,0.00025511,58834.0,58833.0,1.525686]
[1723680638713,0.00025511,58834.0,58833.0,1.2782942]
[1723680638926,0.00025511,58834.0,58833.0,0.615766]
[1723680639227,0.00025511,58834.0,58833.0,0.68339917]
[1723680639425,0.00025511,58834.0,58833.0,0.76836517]
[1723680639823,0.00025511,58834.0,58833.0,0.615766]
[1723680640028,0.00025511,58834.0,58833.0,0.700732]
[1723680640233,0.00025511,58834.0,58833.0,0.76835482]
[1723680640424,0.00025511,58834.0,58833.0,0.700732]
[1723680640625,0.00025511,58834.0,58833.0,0.615766]
[1723680640821,0.00025511,58834.0,58833.0,0.68338927]
[1723680641128,0.09025511,58834.0,58833.0,0.615766]
[1723680641332,0.17522011,58834.0,58833.0,0.5308]
[1723680641628,0.17522011,58834.0,58833.0,0.17]
[1723680641816,0.17522011,58834.0,58833.0,0.01]
[1723680642128,0.77010511,58834.0,58833.0,0.01]
[1723680642330,0.77110511,58834.0,58833.0,0.005]
[1723680642724,0.084972,58829.0,58828.0,0.00025511]
[1723680643032,0.234972,58829.0,58828.0,0.00025511]
[1723680644931,0.236972,58829.0,58828.0,0.00025511]
[1723680645128,0.239972,58829.0,58828.0,0.00025511]
[1723680646024,0.749932,58829.0,58828.0,0.00025511]
[1723680646219,1.234904,58829.0,58828.0,0.00025511]
[1723680646418,1.06496,58829.0,58815.0,0.05071476]
[1723680646619,0.084988,58818.0,58815.0,0.30570676]
[1723680646929,0.084988,58818.0,58815.0,0.254992]
[1723680647237,0.1518,58825.0,58815.0,0.17]
[1723680647530,0.1518,58825.0,58824.0,0.445779]
[1723680647531,0.0738,58825.0,58824.0,0.445779]
[1723680647725,0.0738,58825.0,58824.0,0.605779]
[1723680648131,0.005,58829.0,58828.0,0.084973]
[1723680648330,0.005,58829.0,58828.0,0.244973]
[1723680648628,0.00025511,58834.0,58832.0,0.084968]
[1723680648820,0.00025511,58834.0,58832.0,0.254968]
[1723680650031,0.00025511,58834.0,58833.0,0.084966]
[1723680651332,0.10025511,58834.0,58833.0,0.254966]
[1723680651923,0.10025511,58834.0,58833.0,0.256966]
[1723680651924,0.11525511,58834.0,58833.0,0.256966]
[1723680653132,0.11425511,58834.0,58833.0,0.256966]
[1723680654129,0.10625511,58834.0,58833.0,0.255966]
[1723680654336,0.11225511,58834.0,58833.0,0.255966]
[1723680654521,0.11225511,58834.0,58833.0,0.254966]
[1723680654727,0.11125511,58834.0,58833.0,0.254966]
[1723680655533,0.11125511,58834.0,58833.0,0.615766]
[1723680655731,0.19622011,58834.0,58833.0,0.5308]
[1723680655931,0.084966,58833.0,58832.0,0.05071476]
[1723680656132,0.084966,58833.0,58827.0,0.13568976]
[1723680656133,0.08497,58831.0,58827.0,0.13568976]
[1723680656434,0.17,58831.0,58827.0,0.27568976]
[1723680656634,0.17,58831.0,58827.0,0.224975]
[1723680657126,0.084972,58829.0,58827.0,0.224975]
[1723680657329,0.244972,58829.0,58827.0,0.225975]
[1723680657627,0.084973,58828.0,58827.0,0.225975]
[1723680657828,0.254973,58828.0,58827.0,0.225975]
[1723680658132,0.17,58828.0,58827.0,0.225975]
[1723680658839,0.171,58828.0,58827.0,0.224975]
[1723680659034,0.171,58828.0,58827.0,0.225975]
[1723680659435,0.171,58828.0,58827.0,0.224975]
[1723680659733,0.173,58828.0,58827.0,0.224975]
[1723680660637,0.003,58828.0,58827.0,0.585775]
[1723680660841,0.003,58828.0,58827.0,0.73837327]
[1723680661239,0.003,58828.0,58827.0,0.67075]
[1723680661739,0.002,58828.0,58827.0,0.73849903]
[1723680662234,0.00174488,58828.0,58827.0,0.67075]
[1723680662639,0.00025511,58834.0,58833.0,0.084966]
[1723680662840,0.00025511,58834.0,58833.0,0.234966]
[1723680662841,0.01025511,58834.0,58833.0,0.234966]
[1723680663040,0.01025511,58834.0,58833.0,0.15]
[1723680663041,0.09522011,58834.0,58833.0,0.15]
[1723680663843,0.08497,58831.0,58827.0,0.087974]
[1723680664028,0.08497,58830.0,58827.0,0.245974]
[1723680664225,0.24497,58830.0,58827.0,0.249974]
[1723680665038,0.24497,58830.0,58827.0,0.248974]
[1723680665430,0.24497,58830.0,58827.0,0.5208]
[1723680665743,0.24697,58830.0,58829.0,0.084972]
[1723680666045,0.24697,58830.0,58829.0,0.244972]
[1723680666228,0.25594253,58830.0,58829.0,0.244972]
[1723680666834,0.25794253,58830.0,58829.0,0.244972]
[1723680667029,0.25794253,58830.0,58829.0,0.16]
[1723680667236,0.33144253,58830.0,58829.0,0.16]
[1723680667944,0.33044253,58830.0,58829.0,0.16]
[1723680668139,0.38504554,58830.0,58829.0,0.16]
[1723680668835,0.38508363,58830.0,58829.0,0.16]
[1723680669345,0.084973,58828.0,58827.0,0.41258071]
[1723680669539,0.084975,58827.0,58826.0,0.05082071]
[1723680669736,0.16,58827.0,58826.0,0.05082071]
[1723680669941,0.16,58827.0,58826.0,0.13579671]
[1723680670237,0.16,58827.0,58826.0,0.084976]
[1723680670441,0.244975,58827.0,58826.0,0.084976]
[1723680670748,0.244975,58827.0,58826.0,0.13586937]
[1723680671547,0.16,58827.0,58826.0,0.29586937]
[1723680672142,0.161,58827.0,58826.0,0.244976]
[1723680672342,0.001,58827.0,58826.0,0.31273694]
[1723680672648,0.001,58827.0,58826.0,1.38958766]
[1723680672856,0.001,58827.0,58826.0,1.46787478]
[1723680673152,0.001,58827.0,58826.0,5.23787478]
[1723680673451,0.001,58827.0,58826.0,5.11126673]
[1723680673946,0.001,58827.0,58826.0,5.25927863]
[1723680674246,0.001,58827.0,58826.0,5.14788594]
[1723680675352,0.001,58827.0,58826.0,1.00688751]
[1723680675646,0.001,58827.0,58826.0,0.3463031]
[1723680676648,0.001,58827.0,58826.0,1.3412391]
[1723680676856,0.001,58827.0,58826.0,1.4429809]
[1723680677052,0.001,58827.0,58826.0,1.60556973]
[1723680677349,0.001,58827.0,58826.0,1.76706502]
[1723680677544,0.001,58827.0,58826.0,1.83022682]
[1723680678350,0.001,58827.0,58826.0,0.34488419]
[1723680679240,0.08522111,58834.0,58833.0,0.084966]
[1723680679456,0.09025511,58834.0,58833.0,0.585766]
[1723680679751,0.17522011,58834.0,58833.0,0.585766]
[1723680680346,0.18122011,58834.0,58833.0,0.585766]
[1723680680542,0.09625511,58834.0,58833.0,0.65360067]
[1723680680742,0.09625511,58834.0,58833.0,0.585766]
[1723680682046,0.10325511,58834.0,58833.0,0.586766]
[1723680682246,0.10325511,58834.0,58833.0,0.65460067]
[1723680683145,0.10325511,58834.0,58833.0,0.586766]
[1723680683347,0.01325511,58834.0,58833.0,0.671732]
[1723680683750,0.01325511,58834.0,58833.0,0.8198241]
[1723680684056,0.01325511,58834.0,58833.0,0.75652534]
[1723680684952,0.01325511,58834.0,58833.0,0.81967176]
[1723680686161,0.01325511,58834.0,58833.0,0.75649892]
[1723680687558,0.01325511,58834.0,58833.0,0.76549199]
[1723680687752,1.1e-07,58834.0,58833.0,1.94450698]
[1723680687954,0.05064983,58854.0,58853.0,0.084937]
[1723680688165,0.05064983,58860.0,58853.0,0.5008]
[1723680688368,0.00903564,58861.0,58860.0,0.084927]
[1723680688658,0.0724,58864.0,58863.0,0.084923]
[1723680688857,0.0824,58864.0,58863.0,0.224923]
[1723680689064,0.0824,58864.0,58863.0,0.084923]
[1723680690046,0.0924,58864.0,58863.0,0.085923]
[1723680690458,0.0984,58864.0,58863.0,0.086923]
[1723680691154,0.169858,58859.0,58852.0,0.06778411]
[1723680691354,0.41144983,58857.0,58847.0,0.084946]
[1723680691559,0.084936,58854.0,58847.0,0.16]
[1723680691757,0.174936,58854.0,58847.0,0.16]
[1723680691950,0.09,58854.0,58847.0,0.16]
[1723680692157,0.09,58854.0,58851.0,0.084939]
[1723680692558,0.09,58854.0,58851.0,0.254939]
[1723680693167,0.174937,58854.0,58851.0,0.254939]
[1723680694360,0.18419839,58854.0,58851.0,0.254939]
[1723680695561,0.18619839,58854.0,58851.0,0.254939]
[1723680695762,0.10126139,58854.0,58852.0,0.084937]
[1723680696061,0.10126139,58854.0,58852.0,0.605737]
[1723680696355,0.10426139,58854.0,58852.0,0.605737]
[1723680696560,0.095,58854.0,58853.0,0.084937]
[1723680696759,0.005,58854.0,58853.0,0.244937]
[1723680696953,0.003,58854.0,58853.0,0.244937]
[1723680697162,0.005,58854.0,58853.0,0.244937]
[1723680698056,0.00025485,58856.0,58855.0,0.084934]
[1723680698263,0.00025485,58856.0,58855.0,0.244934]
[1723680699463,0.00025485,58856.0,58855.0,0.29565327]
[1723680699669,0.00225485,58856.0,58855.0,0.29665327]
[1723680699873,0.00225485,58856.0,58855.0,0.245934]
[1723680700165,0.00225485,58856.0,58855.0,0.330868]
[1723680700356,0.00225485,58856.0,58855.0,0.331868]
[1723680700357,0.00325485,58856.0,58855.0,0.331868]
[1723680700562,0.0724,58864.0,58863.0,0.084923]
[1723680700755,0.0824,58864.0,58863.0,0.605723]
[1723680701062,0.084914,58869.0,58868.0,0.084916]
[1723680701252,0.0714,58874.0,58868.0,0.821516]
[1723680701455,0.3216,58879.0,58873.0,0.3608]
[1723680701654,0.00025485,58877.0,58873.0,0.5308]
[1723680701970,0.18515785,58877.0,58876.0,0.084904]
[1723680702265,0.084907,58874.0,58873.0,0.36172]
[1723680702465,0.244907,58874.0,58873.0,0.3608]
[1723680702662,0.244907,58874.0,58863.0,0.002]
[1723680702862,0.084916,58868.0,58864.0,0.08492]
[1723680703065,0.084916,58868.0,58863.0,0.001]
[1723680703066,0.1429,58867.0,58863.0,0.001]
[1723680703367,0.2135,58867.0,58863.0,0.001]
[1723680703566,0.2135,58867.0,58862.0,0.3608]